fUST/lending_fUST_20250322
["ID","MTS","AMOUNT","RATE_DAILY","PERIOD"]
[356503631,1742572803287,500.0,0.00015178,120]
[356503632,1742572984814,-240.89095306,0.00018176,2]
[356503671,1742573432386,-718.86736841,0.00018178,2]
[356503673,1742573432396,-500.0,0.00018178,2]
[356503675,1742573432406,-500.0,0.00018178,2]
[356503676,1742573432416,-500.0,0.00018178,2]
[356503679,1742573432426,-500.0,0.00018178,2]
[356503680,1742573432435,-500.0,0.00018178,2]
[356503683,1742573432447,-500.0,0.00018178,2]
[356503685,1742573432457,-500.0,0.00018178,2]
[356503687,1742573432467,-650.0,0.00018178,2]
[356503688,1742573432477,-500.0,0.00018178,2]
[356503691,1742573432488,-500.0,0.00018178,2]
[356503693,1742573432500,-500.0,0.00018178,2]
[356503695,1742573432510,-500.0,0.00018178,2]
[356503697,1742573432526,-500.0,0.00018178,2]
[356503699,1742573432537,-500.0,0.00018178,2]
[356503702,1742573432548,-500.0,0.00018178,2]
[356503706,1742573432558,-500.0,0.00018178,2]
[356503709,1742573432568,-500.0,0.00018178,2]
[356503710,1742573432579,-500.0,0.00018178,2]
[356503713,1742573432589,-795.79627948,0.00018178,2]
[356503715,1742573432599,-322.95060787,0.000239,3]
[356503717,1742573432611,-2751.0,0.00024,2]
[356503719,1742573432621,-164.8844338,0.00024152,2]
[356503720,1742573432632,-322.9506076,0.00024279,3]
[356503722,1742573432642,-1124.558049,0.000243,2]
[356503724,1742573432653,-1000.0,0.000245,10]
[356503726,1742573432663,-250.0,0.00024658,2]
[356503728,1742573432673,-322.9506076,0.00024659,3]
[356503730,1742573432683,-1000.0,0.000248,2]
[356503733,1742573432693,-251.77154854,0.000249,2]
[356503734,1742573432703,-322.9506076,0.00025038,4]
[356503736,1742573432714,-322.9506076,0.00025417,4]
[356503738,1742573432723,-187.1640569,0.00025479,2]
[356503740,1742573432733,-187.1640569,0.00025479,2]
[356503743,1742573432744,-187.1640569,0.00025479,2]
[356503744,1742573432754,-187.1640569,0.00025479,2]
[356503746,1742573432764,-187.1640569,0.00025479,2]
[356503748,1742573432775,-399.999998,0.00025789,2]
[356503751,1742573432785,-322.9506076,0.00025797,4]
[356503753,1742573432795,-500.0,0.00025894,2]
[356503755,1742573432805,-500.0,0.00025894,2]
[356503757,1742573432815,-152.07146376,0.00025894,2]
[356503759,1742573432825,-500.0,0.00025894,2]
[356503761,1742573432835,-22402.6541399,0.00025896,2]
[356503763,1742573432848,-322.9506076,0.00026176,4]
[356503765,1742573432858,-164.53643,0.00026301,3]
[356503767,1742573432868,-204.14306495,0.00026366,2]
[356503769,1742573432878,-1103.84914418,0.00026366,2]
[356503771,1742573432888,-160.0,0.00026366,2]
[356503772,1742573432898,-834.1406796,0.00026366,2]
[356503775,1742573432909,-187.2851856,0.000264,2]
[356503777,1742573432918,-350.0,0.000265,2]
[356503779,1742573432928,-322.9506076,0.00026555,4]
[356503781,1742573432938,-1000.0,0.00026921,2]
[356503783,1742573432947,-322.9506076,0.00026934,4]
[356503784,1742573432957,-1000.0,0.00027058,2]
[356503786,1742573432967,-164.53643,0.0002719,30]
[356503788,1742573432976,-3000.0,0.000272,2]
[356503790,1742573432986,-539.94721539,0.0002721,2]
[356503793,1742573433008,-2958.69128661,0.0002721,2]
[356503795,1742573433017,-418.02116171,0.00027248,2]
[356503797,1742573433027,-322.9506076,0.00027314,4]
[356503799,1742573433037,-500.0,0.00027397,5]
[356503802,1742573433057,-500.0,0.00027499,2]
[356503804,1742573433067,-500.0,0.00027499,2]
[356503806,1742573433077,-500.0,0.00027499,2]
[356503808,1742573433090,-333.74137466,0.00027499,2]
[356503810,1742573433102,-500.0,0.000275,10]
[356503812,1742573433112,-504.50878749,0.000275,10]
[356503814,1742573433123,-500.0,0.000275,10]
[356503816,1742573433134,-500.0,0.000275,10]
[356503818,1742573433144,-500.0,0.000275,10]
[356503820,1742573433155,-500.0,0.000275,10]
[356503822,1742573433165,-500.0,0.000275,10]
[356503824,1742573433177,-500.0,0.000275,10]
[356503826,1742573433186,-500.0,0.000275,10]
[356503828,1742573433197,-500.0,0.000275,10]
[356503830,1742573433207,-500.0,0.000275,10]
[356503832,1742573433219,-500.0,0.000275,10]
[356503833,1742573433230,-500.0,0.000275,10]
[356503834,1742573433241,-500.0,0.000275,10]
[356503835,1742573433251,-500.0,0.000275,10]
[356503836,1742573433262,-500.0,0.000275,10]
[356503837,1742573433272,-500.0,0.000275,10]
[356503838,1742573433282,-500.0,0.000275,10]
[356503839,1742573433293,-500.0,0.000275,10]
[356503840,1742573433303,-500.0,0.000275,10]
[356503841,1742573433313,-500.0,0.000275,10]
[356503842,1742573433325,-500.0,0.000275,10]
[356503843,1742573433335,-500.0,0.000275,10]
[356503844,1742573433346,-500.0,0.000275,10]
[356503845,1742573433356,-500.0,0.000275,10]
[356503846,1742573433367,-500.0,0.000275,10]
[356503847,1742573433379,-500.0,0.000275,10]
[356503848,1742573433389,-322.9506076,0.00027693,4]
[356503849,1742573433399,-150.0,0.00027787,2]
[356503850,1742573433409,-322.9506076,0.00028072,5]
[356503851,1742573433419,-560.8155558,0.00028164,30]
[356503852,1742573433430,-155.7586169,0.00028164,30]
[356503853,1742573433440,-150.0,0.00028277,2]
[356503854,1742573433452,-541.0,0.00028277,2]
[356503855,1742573433462,-2273.0,0.00028277,2]
[356503856,1742573433473,-1914.0,0.00028277,2]
[356503857,1742573433484,-164.53643,0.0002832,15]
[356503858,1742573433494,-322.9506076,0.00028452,5]
[356503859,1742573433505,-6923.47961,0.00028489,7]
[356503860,1742573433515,-8000.03800854,0.0002849,2]
[356503861,1742573433526,-12709.4119452,0.0002849,2]
[356503862,1742573433536,-151.0,0.0002849,7]
[356503863,1742573433546,-151.0,0.0002849,7]
[356503864,1742573433557,-21533.340229,0.000285,3]
[356503865,1742573433568,-151.0,0.000285,7]
[356503866,1742573433578,-1477.281959,0.000285,2]
[356503867,1742573433589,-1477.281959,0.000285,2]
[356503868,1742573433599,-151.0,0.000285,7]
[356503869,1742573433610,-151.0,0.000285,7]
[356503870,1742573433621,-292.85901,0.000285,7]
[356503871,1742573433631,-151.0,0.000285,7]
[356503872,1742573433642,-292.85901,0.000285,7]
[356503873,1742573433652,-834.1406796,0.000285,3]
[356503874,1742573433664,-418.02116171,0.000285,3]
[356503875,1742573433674,-151.0,0.000285,7]
[356503876,1742573433686,-151.0,0.000285,7]
[356503877,1742573433697,-584.30119209,0.00028575,2]
[356503878,1742573433707,-584.30119209,0.00028712,2]
[356503879,1742573433718,-1000.0,0.00028767,5]
[356503880,1742573433728,-177.52860391,0.00028787,2]
[356503881,1742573433738,-2166.6425821,0.00028787,2]
[356503882,1742573433748,-322.9506076,0.00028831,5]
[356503883,1742573433760,-151.0,0.00028842,7]
[356503884,1742573433770,-1477.281959,0.00028842,2]
[356503885,1742573433781,-1155.07883144,0.00028842,2]
[356503886,1742573433805,-322.20312756,0.00028842,2]
[356503887,1742573433816,-151.0,0.00028842,7]
[356503888,1742573433827,-201.18571,0.00028842,7]
[356503889,1742573433838,-292.85901,0.00028842,7]
[356503890,1742573433848,-292.85901,0.00028842,7]
[356503891,1742573433858,-584.30119209,0.00028849,2]
[356503892,1742573433868,-2527.64889132,0.00028852,20]
[356503893,1742573433878,-27180.32427182,0.00028852,2]
[356503899,1742573438183,-464.08112466,0.00025893,2]
[356503900,1742573438238,-35.91887534,0.00025893,2]
[356503901,1742573438248,-255.38916201,0.00025893,2]
[356503902,1742573438262,-196.06900739,0.00025893,2]
[356503903,1742573438272,-200.0,0.00025893,2]
[356503904,1742573438282,-380.44030992,0.00025893,2]
[356503905,1742573438292,-400.0,0.00027105,2]
[356503906,1742573438303,-500.0,0.00027397,2]
[356503907,1742573438313,-539.96877015,0.00027397,2]
[356503908,1742573438326,-8662.34435311,0.00028852,2]
[356503921,1742573440601,-3026.45,0.00028852,2]
[356503922,1742573440614,-1131.07141777,0.00028852,2]
[356503923,1742573440624,-886.32858223,0.00028852,2]
[356503976,1742573443421,-401.32949645,0.00025893,2]
[356503977,1742573443436,-98.67050355,0.00025893,2]
[356503978,1742573443447,-177.52860392,0.0002709,2]
[356503979,1742573443458,-2153.96710738,0.00028852,2]
[356504043,1742573446408,-769.35604073,0.00028753,2]
[356504045,1742573446418,-7574.64395928,0.00028852,2]
[356504102,1742574632471,-386.36468759,0.00023969,2]
[356504103,1742574632481,-499.999998,0.00025789,2]
[356504105,1742574632491,-36.5153144,0.00027035,2]
[356504115,1742574632630,-993.7214808,0.00027035,2]
[356504117,1742574632640,-10000.0,0.00027199,2]
[356504119,1742574632649,-834.1406796,0.00027217,2]
[356504120,1742574632659,-418.02116171,0.00027217,2]
[356504122,1742574632669,-1000.0,0.00027223,5]
[356504124,1742574632678,-500.0,0.00027397,5]
[356504125,1742574632687,-203.19217849,0.000279,4]
[356504127,1742574632696,-449.811516,0.00028,15]
[356504128,1742574632705,-187.0907111,0.00028027,30]
[356504130,1742574632715,-155.8400612,0.00028027,30]
[356504132,1742574632724,-584.2291066,0.00028027,30]
[356504133,1742574632733,-155.8400612,0.00028027,30]
[356504135,1742574632743,-155.8400612,0.00028027,30]
[356504136,1742574632752,-155.8400612,0.00028027,30]
[356504138,1742574632762,-155.8400612,0.00028027,30]
[356504140,1742574632771,-163.0292364,0.00028027,30]
[356504141,1742574632780,-374.1814222,0.00028078,30]
[356504143,1742574632789,-1914.0,0.00028173,2]
[356504145,1742574632799,-2267.0,0.00028173,2]
[356504146,1742574632807,-203.1921784,0.00028176,5]
[356504148,1742574632817,-560.8155558,0.00028192,30]
[356504150,1742574632827,-203.1921784,0.00028452,5]
[356504151,1742574632836,-673.18653563,0.0002864,2]
[356504153,1742574632845,-466.59312168,0.00028653,2]
[356504154,1742574632854,-466.59312166,0.00028665,2]
[356504155,1742574632865,-466.59312166,0.00028677,2]
[356504156,1742574632875,-466.59312166,0.00028688,2]
[356504157,1742574632884,-466.59312166,0.000287,2]
[356504158,1742574632894,-1444.42838806,0.000287,2]
[356504159,1742574632903,-203.1921784,0.00028728,5]
[356504160,1742574632912,-151.0,0.00028745,2]
[356504161,1742574632921,-1029.4654639,0.00028745,2]
[356504162,1742574632931,-500.0,0.00028751,2]
[356504163,1742574632940,-500.0,0.00028751,2]
[356504164,1742574632949,-536.29807644,0.00028751,2]
[356504165,1742574632958,-37072.1602541,0.00028752,2]
[356504166,1742574632969,-500.0,0.00028753,2]
[356504167,1742574632979,-159.24,0.00028753,2]
[356504168,1742574632989,-3000.0,0.00028753,2]
[356504169,1742574632998,-316.77391936,0.00028761,2]
[356504170,1742574633007,-1374.62472298,0.00028762,20]
[356504171,1742574633017,-102700.54465634,0.00028762,2]
[356504191,1742574638535,-500.0,0.00028172,2]
[356504192,1742574638546,-500.0,0.00028172,2]
[356504193,1742574638556,-245.49622947,0.00028172,2]
[356504250,1742574643520,-254.50377053,0.00028172,2]
[356504251,1742574643531,-500.0,0.00028172,2]
[356504252,1742574643541,-211.7302075,0.00028172,2]
[356504253,1742574643551,-500.0,0.00028172,2]
[356504254,1742574643560,-500.0,0.00028172,2]
[356504255,1742574643570,-500.0,0.00028172,2]
[356504256,1742574643580,-254.38327639,0.00028172,2]
[356504257,1742574643590,-500.0,0.00028172,2]
[356504258,1742574643600,-410.72753835,0.00028172,2]
[356504259,1742574643610,-500.0,0.00028172,2]
[356504260,1742574643620,-150.0,0.00028173,2]
[356504261,1742574643630,-32744.41169172,0.00028762,2]
[356504262,1742574643645,-17530.53095492,0.00028762,2]
[356504263,1742574643657,-938.61963009,0.00028762,2]
[356504264,1742574643668,-4338.4439522,0.00028762,2]
[356504284,1742574646810,-541.0,0.00028173,2]
[356504288,1742574646820,-3000.0,0.00028653,2]
[356504291,1742574646830,-4838.3,0.00028762,2]
[356504345,1742575832619,-500.0,0.00027397,5]
[356504348,1742575832629,-834.1406796,0.00027999,2]
[356504349,1742575832638,-418.02116171,0.00028007,2]
[356504350,1742575832648,-300.0,0.00028067,2]
[356504351,1742575832657,-541.0,0.00028068,2]
[356504352,1742575832667,-1914.0,0.00028068,2]
[356504353,1742575832676,-2264.0,0.00028068,2]
[356504354,1742575832685,-400.0,0.00028068,2]
[356504355,1742575832694,-150.00000001,0.000285,2]
[356504356,1742575832704,-160.0,0.00028634,2]
[356504357,1742575832714,-500.0,0.00028653,2]
[356504358,1742575832725,-3000.0,0.00028662,2]
[356504359,1742575832734,-1000.0,0.00028767,5]
[356504360,1742575832744,-589.03821865,0.0002877,2]
[356504361,1742575832754,-1444.42838805,0.00028787,2]
[356504362,1742575832763,-2098.0,0.000288,7]
[356504363,1742575832773,-3111.84,0.0002885,30]
[356504364,1742575832783,-500.0,0.00028868,2]
[356504365,1742575832792,-380.65780558,0.00028868,2]
[356504366,1742575832802,-500.0,0.00028869,2]
[356504368,1742575832811,-575.40865351,0.00028869,2]
[356504370,1742575832821,-6474.67223226,0.0002887,2]
[356504372,1742575832838,-15768.62392014,0.0002887,2]
[356504374,1742575832847,-37608.8106634,0.0002887,2]
[356504376,1742575832858,-687.31236149,0.0002888,20]
[356504377,1742575832867,-5560.82403811,0.0002888,2]
[356504379,1742575832876,-9402.20266584,0.0002888,2]
[356504381,1742575832886,-86774.36492445,0.0002888,2]
[356504416,1742575838526,-781.27293045,0.0002888,2]
[356504425,1742575838605,-26255.74113487,0.0002888,2]
[356504428,1742575838616,-20977.97573421,0.0002888,2]
[356504436,1742575838680,-268.735003,0.0002888,2]
[356504553,1742575840885,-749.32391208,0.0002888,2]
[356504554,1742575840942,-86192.58636094,0.0002888,2]
[356504555,1742575840952,-302.50618733,0.00028887,2]
[356504556,1742575840962,-206.70387237,0.000289,5]
[356504557,1742575840972,-699.0,0.000289,120]
[356504558,1742575840982,-250.0,0.000289,4]
[356504559,1742575840991,-250.0,0.000289,4]
[356504560,1742575841000,-500.0,0.00028973,5]
[356504561,1742575841009,-500.0,0.00028973,5]
[356504562,1742575841019,-396.12944399,0.00028973,5]
[356504563,1742575841028,-500.0,0.00028973,5]
[356504564,1742575841038,-500.0,0.00028973,5]
[356504565,1742575841047,-500.0,0.00028973,5]
[356504566,1742575841056,-500.0,0.00028973,5]
[356504567,1742575841066,-463.97184841,0.00028973,5]
[356504568,1742575841075,-507.37884348,0.00028973,5]
[356504569,1742575841085,-161.86764245,0.00028973,5]
[356504570,1742575841094,-500.0,0.00028973,5]
[356504571,1742575841104,-500.0,0.00028973,5]
[356504572,1742575841114,-447.13832284,0.00028973,2]
[356504573,1742575841124,-500.0,0.00028973,5]
[356504574,1742575841133,-500.0,0.00028973,5]
[356504575,1742575841142,-500.98596614,0.00028973,5]
[356504576,1742575841153,-500.0,0.00028973,5]
[356504577,1742575841162,-500.0,0.00028973,5]
[356504578,1742575841171,-501.45245602,0.00028973,5]
[356504579,1742575841182,-500.0,0.00028973,5]
[356504580,1742575841191,-501.195213,0.00028973,5]
[356504581,1742575841200,-500.0,0.00028973,5]
[356504582,1742575841210,-500.0,0.00028973,5]
[356504583,1742575841220,-500.0,0.00028973,5]
[356504584,1742575841229,-500.0,0.00028973,5]
[356504585,1742575841238,-500.0,0.00028973,5]
[356504586,1742575841247,-500.0,0.00028973,5]
[356504587,1742575841256,-151.0,0.00028973,7]
[356504588,1742575841266,-151.0,0.00028973,7]
[356504589,1742575841275,-151.0,0.00028973,7]
[356504590,1742575841286,-1181.825567,0.00028973,2]
[356504591,1742575841295,-151.0,0.00028973,7]
[356504592,1742575841305,-1181.825567,0.00028973,2]
[356504593,1742575841315,-200.911449,0.0002898,7]
[356504594,1742575841325,-200.911449,0.0002898,7]
[356504595,1742575841335,-151.0,0.0002898,7]
[356504596,1742575841345,-151.0,0.0002898,7]
[356504597,1742575841356,-11121.6480762,0.0002898,2]
[356504598,1742575841365,-12953.68448262,0.0002898,2]
[356504612,1742575843666,-151.0,0.0002898,7]
[356504613,1742575843676,-5850.72084908,0.0002898,2]
[356504614,1742575843685,-616.3434203,0.00028986,2]
[356504615,1742575843695,-584.30119209,0.00028986,2]
[356504616,1742575843704,-295.0,0.00028989,2]
[356504617,1742575843713,-150.14,0.00028989,2]
[356504618,1742575843723,-500.0,0.00028989,2]
[356504619,1742575843733,-500.0,0.00028989,2]
[356504620,1742575843743,-500.0,0.00028989,2]
[356504621,1742575843753,-150.14,0.00028989,2]
[356504622,1742575843763,-535.0,0.00028989,2]
[356504623,1742575843772,-150.14,0.00028989,2]
[356504624,1742575843782,-150.14,0.00028989,2]
[356504625,1742575843796,-111.47016749,0.00028989,2]
[356504626,1742575843812,-388.52983251,0.00028989,2]
[356504627,1742575843821,-500.0,0.00028989,2]
[356504628,1742575843831,-500.0,0.00028989,2]
[356504629,1742575843841,-10559.60198565,0.0002899,7]
[356504631,1742575843852,-19891.50272128,0.0002899,7]
[356504633,1742575843868,-3769.34004383,0.0002899,7]
[356504636,1742575843883,-405.34503182,0.0002899,7]
[356504670,1742575846675,-1008.75228158,0.0002899,7]
[356504671,1742575846687,-1237.43049552,0.0002899,7]
[356504672,1742575846698,-14786.17550463,0.0002899,7]
[356504673,1742575846730,-3234.98145832,0.0002899,7]
[356504753,1742577031895,-213.630459,0.00027051,2]
[356504754,1742577031905,-492.0050339,0.00027172,2]
[356504755,1742577031916,-389.53412806,0.00027178,2]
[356504756,1742577031927,-150.0,0.000272,2]
[356504757,1742577031940,-389.53412806,0.00027315,2]
[356504758,1742577031953,-500.0,0.00027397,5]
[356504759,1742577031972,-389.53412806,0.00027452,2]
[356504760,1742577031984,-389.53412806,0.00027589,2]
[356504761,1742577031996,-389.53412806,0.00027726,2]
[356504762,1742577032007,-389.53412806,0.00027836,2]
[356504763,1742577032018,-199.81374303,0.000279,4]
[356504764,1742577032029,-389.53412806,0.00027973,2]
[356504765,1742577032042,-300.0,0.00028089,2]
[356504766,1742577032053,-541.0,0.0002809,2]
[356504767,1742577032064,-2264.0,0.0002809,2]
[356504768,1742577032086,-196.70584525,0.0002809,2]
[356504791,1742577037665,-1717.29415475,0.0002809,2]
[356504793,1742577037676,-400.0,0.0002809,2]
[356504795,1742577037687,-389.53412806,0.0002811,2]
[356504797,1742577037698,-199.81374303,0.00028176,5]
[356504799,1742577037708,-389.53412806,0.00028247,2]
[356504801,1742577037719,-389.53412806,0.00028384,2]
[356504803,1742577037730,-199.81374303,0.00028452,5]
[356504805,1742577037740,-389.53412806,0.00028493,2]
[356504808,1742577037750,-389.53412806,0.0002863,2]
[356504810,1742577037761,-834.1406796,0.00028683,2]
[356504812,1742577037771,-160.0,0.00028688,2]
[356504814,1742577037782,-418.02116171,0.00028689,2]
[356504816,1742577037792,-199.81374303,0.00028728,5]
[356504818,1742577037803,-1000.0,0.00028767,5]
[356504820,1742577037813,-14458.1424991,0.0002877,2]
[356504822,1742577037824,-24445.7269312,0.0002877,2]
[356504824,1742577037834,-3000.0,0.0002877,2]
[356504826,1742577037847,-500.0,0.00028779,2]
[356504829,1742577037857,-403.11154251,0.00028779,2]
[356504831,1742577037868,-20368.88836926,0.0002878,2]
[356504867,1742577040075,-651.08495019,0.0002878,2]
[356504882,1742577042952,-3000.0,0.0002878,2]
[356504946,1742578232021,-150.0,0.0002,7]
[356504947,1742578232031,-1639.601418,0.00026,30]
[356504948,1742578232041,-300.0,0.00027256,2]
[356504949,1742578232051,-10000.0,0.00027257,2]
[356504950,1742578232061,-1000.0,0.000274,6]
[356504951,1742578232071,-194.76706404,0.00027562,2]
[356504952,1742578232081,-199.81374303,0.000279,4]
[356504953,1742578232091,-194.76706404,0.00027945,2]
[356504954,1742578232100,-815.82944225,0.00028,2]
[356504955,1742578232109,-1702.85127688,0.00028,2]
[356504956,1742578232119,-400.0,0.00028029,2]
[356504957,1742578232129,-540.0,0.00028029,2]
[356504958,1742578232138,-150.0,0.00028029,2]
[356504959,1742578232149,-199.81374303,0.0002822,5]
[356504960,1742578232158,-194.76706404,0.00028301,2]
[356504961,1742578232168,-834.1406796,0.00028432,2]
[356504962,1742578232177,-418.02116171,0.00028437,2]
[356504963,1742578232188,-1500.0,0.00028512,2]
[356504964,1742578232199,-199.81374303,0.0002854,5]
[356504965,1742578232212,-1295.51449563,0.0002857,2]
[356504966,1742578232221,-1295.51449561,0.00028578,2]
[356504967,1742578232231,-1295.51449561,0.00028585,2]
[356504968,1742578232240,-1295.51449561,0.00028593,2]
[356504969,1742578232250,-1295.51449561,0.000286,2]
[356504970,1742578232259,-1372.1396248,0.00028642,15]
[356504971,1742578232269,-600.0,0.00028653,2]
[356504972,1742578232278,-3167.35637385,0.0002867,2]
[356504973,1742578232290,-10617.07750502,0.0002867,2]
[356504974,1742578232309,-3218.14497473,0.0002867,2]
[356504975,1742578232319,-3000.0,0.0002867,2]
[356504976,1742578232329,-500.0,0.00028679,2]
[356504977,1742578232338,-298.89042925,0.00028679,2]
[356504978,1742578232348,-195.47845307,0.00028679,2]
[356504979,1742578232357,-1718.28090372,0.0002868,20]
[356504980,1742578232367,-500.0,0.0002868,2]
[356504981,1742578232377,-124060.22306819,0.0002868,2]
[356505069,1742578240157,-1000.0,0.00027537,6]
[356505072,1742578240167,-1000.0,0.00027674,6]
[356505075,1742578240176,-1000.0,0.00027811,6]
[356505077,1742578240185,-1000.0,0.00027948,6]
[356505080,1742578240195,-1000.0,0.00028085,6]
[356505082,1742578240204,-97939.77693181,0.0002868,2]
[356505085,1742578240213,-250.0,0.00028779,2]
[356505088,1742578240222,-250.0,0.0002878,2]
[356505091,1742578240232,-344.6,0.000288,4]
[356505093,1742578240241,-199.81374303,0.0002886,5]
[356505096,1742578240250,-4250.64471341,0.0002889,2]
[356505099,1742578240258,-1444.42838805,0.0002889,2]
[356505100,1742578240267,-1165.8084428,0.000289,20]
[356505393,1742579432303,-152.45405712,0.00025204,10]
[356505394,1742579432313,-147.54594288,0.00027397,5]
[356505399,1742579438005,-352.45405712,0.00027397,5]
[356505400,1742579438015,-198.66269117,0.00027795,2]
[356505401,1742579438025,-834.1406796,0.0002788,2]
[356505402,1742579438034,-199.81374303,0.000279,4]
[356505403,1742579438043,-680.273,0.00027915,2]
[356505405,1742579438052,-400.0,0.00027915,2]
[356505406,1742579438062,-344.74015091,0.00028,4]
[356505407,1742579438071,-1000.0,0.00028222,6]
[356505408,1742579438080,-199.81374303,0.00028281,5]
[356505409,1742579438090,-1000.0,0.00028359,6]
[356505410,1742579438101,-300.0,0.00028494,2]
[356505411,1742579438110,-1000.0,0.00028496,6]
[356505412,1742579438119,-418.02116171,0.000285,2]
[356505413,1742579438129,-12751.9341402,0.0002857,2]
[356505414,1742579438139,-3000.0,0.0002857,2]
[356505415,1742579438148,-559.22330047,0.00028579,2]
[356505416,1742579438157,-186.89403759,0.00028579,2]
[356505417,1742579438168,-5577.20761065,0.0002858,2]
[356505418,1742579438184,-46872.78638032,0.0002858,2]
[356505435,1742579440340,-936.98429254,0.0002858,2]
[356505436,1742579440352,-4000.0,0.0002858,2]
[356505460,1742579443267,-43903.64121166,0.0002858,2]
[356505662,1742580632325,-258.5,0.00024373,2]
[356505664,1742580632336,-1000.0,0.00025467,2]
[356505666,1742580632346,-289.00000001,0.00026,2]
[356505668,1742580632356,-500.0,0.00027397,5]
[356505670,1742580632367,-199.81374303,0.000279,4]
[356505672,1742580632377,-400.0,0.00027915,2]
[356505674,1742580632387,-199.81374303,0.00028321,5]
[356505676,1742580632396,-418.02116171,0.00028408,2]
[356505678,1742580632406,-834.1406796,0.00028412,2]
[356505680,1742580632416,-300.0,0.00028479,2]
[356505683,1742580632426,-2634.19545013,0.0002848,2]
[356505696,1742580632547,-365.80454987,0.0002848,2]
[356505698,1742580632558,-500.0,0.0002848,2]
[356505700,1742580632568,-821.91122951,0.00028499,2]
[356505701,1742580632577,-834.1915572,0.000285,7]
[356505703,1742580632587,-612.54178498,0.00028556,2]
[356505705,1742580632597,-152.0,0.00028565,2]
[356505708,1742580632611,-500.0,0.00028589,2]
[356505710,1742580632621,-543.87669927,0.00028589,2]
[356505712,1742580632631,-83829.5820069,0.0002859,2]
[356505714,1742580632641,-859.14045186,0.000286,20]
[356505716,1742580632652,-213541.21722132,0.000286,2]
[356505719,1742580632665,-8458.78277868,0.000286,2]
[356505721,1742580632675,-155.7586169,0.00028603,30]
[356505723,1742580632685,-1121.6311116,0.00028603,30]
[356505725,1742580632695,-389.738534,0.00028603,30]
[356505727,1742580632705,-314.6997084,0.00028603,30]
[356505730,1742580632715,-1158.8346329,0.00028603,30]
[356505732,1742580632727,-1121.6311116,0.00028603,30]
[356505734,1742580632737,-155.7586169,0.00028603,30]
[356505736,1742580632747,-157.6610457,0.00028603,30]
[356505738,1742580632756,-1000.0,0.00028633,6]
[356505740,1742580632766,-20957.3955017,0.0002868,2]
[356505742,1742580632776,-199.81374303,0.00028742,5]
[356505744,1742580632786,-1000.0,0.00028767,5]
[356505746,1742580632796,-1000.0,0.0002877,6]
[356505748,1742580632806,-1000.0,0.00028907,6]
[356505751,1742580632816,-500.0,0.00028973,5]
[356505753,1742580632827,-471.93897924,0.00028973,5]
[356505755,1742580632837,-500.0,0.00028973,5]
[356505757,1742580632847,-500.0,0.00028973,5]
[356505759,1742580632856,-500.0,0.00028973,5]
[356505761,1742580632866,-500.0,0.00028973,5]
[356505763,1742580632876,-500.0,0.00028973,5]
[356505765,1742580632885,-265.10758755,0.00028973,5]
[356505767,1742580632895,-500.0,0.00028973,5]
[356505769,1742580632905,-500.0,0.00028973,5]
[356505771,1742580632915,-200.10757435,0.00028973,5]
[356505773,1742580632924,-500.0,0.00028973,5]
[356505776,1742580632935,-500.0,0.00028973,5]
[356505778,1742580632945,-500.0,0.00028973,5]
[356505780,1742580632955,-500.0,0.00028973,5]
[356505782,1742580632964,-500.0,0.00028973,5]
[356505784,1742580632974,-501.40431384,0.00028973,5]
[356505786,1742580632983,-500.0,0.00028973,5]
[356505788,1742580632993,-362.19133297,0.00028973,5]
[356505790,1742580633003,-151.0,0.00028973,7]
[356505792,1742580633014,-263.573108,0.00028973,7]
[356505794,1742580633024,-263.573108,0.00028973,7]